[Event "Leca Open 2022"]
[Site "Leca da Palmeira"]
[Date "2022.08.05"]
[Round "9.10"]
[White "Martins, Bruno Andre Leite"]
[Black "Padeiro, Jose"]
[Result "1-0"]
[ECO "D00"]
[WhiteElo "2331"]
[BlackElo "2216"]
[Annotator "TA"]
[PlyCount "104"]
[EventDate "2022.08.02"]
[EventType "swiss"]
[EventCountry "POR"]
[SourceTitle "playchess.com"]
[Source "ChessBase"]
[SourceQuality "1"]
[TimeControl "5400+30"]

{[%evp 9,104,-3,6,1,6,-9,-7,-17,-13,-15,-22,-19,-6,-15,-6,-17,-7,-20,-13,-22,0,-4,8,-5,0,0,0,-1,0,-10,-5,0,0,-9,-4,-26,0,0,0,0,0,-4,21,4,4,1,15,12,16,33,31,20,0,0,0,0,0,0,0,0,0,-25,-9,-18,-32,-71,-34,-25,0,0,0,0,0,0,41,0,0,0,0,0,0,0,0,0,55,32,37,12,37,22,210,217,210,196,206,200,180]} 1. d4 {[%emt 0:00:03]} d5 {[%emt 0:00:21]} 2. Bf4 {[%emt 0:00:16]} Nf6 {[%emt 0:00:54]} 3. e3 {[%emt 0:00:30]} e6 {[%emt 0:00:28]} 4. Nd2 {[%emt 0:00:00]} Bd6 {[%emt 0:00:14]} 5. Bg3 {[%emt 0:00:09]} c5 {[%emt 0:01:12]} 6. Ngf3 {[%emt 0:03:21] D00: 1 d4 d5: Unusual lines.} O-O {[%emt 0:02:56]} 7. c3 {[%emt 0:00:40]} Qc7 {[%emt 0:02:40]} 8. Be2 {[%emt 0:08:37] The position is equal.} Nbd7 {[%emt 0:05:03]} 9. O-O Bxg3 {[%emt 0:00:05]} 10. hxg3 {[%emt 0:01:51]} e5 {[%emt 0:00:30]} 11. dxe5 {[%emt 0:00:50]} Nxe5 {[%emt 0:00:05]} 12. Nxe5 {[%emt 0:00:21]} Qxe5 {[%emt 0:00:03]} 13. Nf3 {[%emt 0:01:01]} Qc7 {[%emt 0:07:31] [#]} 14. Qa4 $146 {[%emt 0:01:47]} ({Predecessor:} 14. c4 dxc4 15. Bxc4 a6 16. Qc2 b5 17. Bd3 Bb7 18. Rac1 Qa5 19. a3 c4 20. Be2 {0-1 (60) Mogilny,E (1756)-Pultinevicius,P (2492) Viljandi 2021}) 14... Ne4 {[%emt 0:02:30]} 15. Rfd1 {[%emt 0:04:10]} Bd7 {[%emt 0:03:13]} 16. Qa3 {[%emt 0:01:55]} Be6 {[%emt 0:04:27]} 17. Nd2 {[%emt 0:03:36]} Nd6 {[%emt 0:04:03]} 18. Bf3 {[%emt 0:11:47]} Rac8 {[%emt 0:04:53]} 19. Qa4 {[%emt 0:06:52]} Rfd8 {[%emt 0:01:54]} 20. Qf4 {[%emt 0:03:55]} Ne8 {[%emt 0:08:31]} 21. Nb3 {[%emt 0:04:04]} b6 {[%emt 0:01:56]} 22. Rd2 {[%emt 0:02:26]} Qxf4 {[%emt 0:06:55]} 23. gxf4 {[%emt 0:00:31]} Nf6 {[%emt 0:00:04]} 24. Rad1 {[%emt 0:00:41][%cal Oe3e4]} Rd7 {[%emt 0:06:08]} 25. Be2 {[%emt 0:09:58]} Kf8 {[%emt 0:00:30]} 26. f3 {[%emt 0:00:49]} h5 {[%emt 0:00:19]} 27. Kf2 {[%emt 0:07:00]} Ke7 {[%emt 0:01:25]} 28. Nc1 {[%emt 0:00:43]} Rdc7 {[%emt 0:09:12][%cal Bd7c7,Bc7c8,Bc8d8][%mdl 32]} 29. Ba6 {[%emt 0:01:26]} Rh8 {[%emt 0:01:25]} 30. Bd3 {[%emt 0:00:47]} g6 {[%emt 0:00:30]} 31. Ne2 {[%emt 0:03:59]} h4 {[%emt 0:01:00]} 32. Rh1 {[%emt 0:00:50]} Rcc8 {[%emt 0:00:29]} 33. Ba6 {[%emt 0:01:48]} Rcd8 {[%emt 0:01:02]} 34. b4 {[%emt 0:01:33]} Ne8 {[%emt 0:03:50]} 35. Bd3 {[%emt 0:03:31]} Nd6 {[%emt 0:00:37][%cal Od6e4]} 36. Bc2 {[%emt 0:02:11] Against Ne4+} a5 37. bxc5 {[%emt 0:01:58]} bxc5 {[%emt 0:06:02]} (37... Nc4 $5 {[%cal Rc4d2]} 38. Rdd1 bxc5 $11) 38. Bb3 {[%emt 0:00:26]} Nc4 {[%emt 0:01:18]} 39. Bxc4 {[%emt 0:01:20]} dxc4 {[%emt 0:00:02]} 40. Rb2 {[%emt 0:00:18]} Bd7 {[%emt 0:04:45]} 41. Rb7 {[%emt 0:00:43]} Rb8 {[%emt 0:01:01]} 42. Rhb1 {[%emt 0:02:14]} Rxb7 {[%emt 0:00:05]} 43. Rxb7 $11 {[%emt 0:00:05][%mdl 4096] Endgame KRB-KRN} Kd6 {[%emt 0:00:27]} 44. e4 {[%emt 0:01:21]} Ra8 {[%emt 0:01:25]} 45. Ke3 {[%emt 0:00:43]} Kc6 {[%emt 0:00:24]} 46. Rb1 {[%emt 0:00:12]} f6 {[%emt 0:01:42]} (46... Rh8 $11) 47. Rd1 {[%emt 0:02:34]} (47. Rh1 $5 {[%cal Rh1h4]}) 47... Rb8 {[%emt 0:02:47]} 48. e5 {[%emt 0:01:39]} fxe5 {[%emt 0:00:30]} 49. fxe5 {[%emt 0:00:30]} Rb2 $2 {[%emt 0:00:30] A mistake that costs the game.} (49... Re8 $11 {and Black has nothing to worry.}) 50. Rd6+ $18 {[%emt 0:00:30] White is clearly better.} Kc7 {[%emt 0:00:30]} 51. Nf4 {[%emt 0:00:30] [#] Nd5+ is the strong threat.} ({Don't do} 51. Rxg6 $6 Rxa2 52. Nf4 a4 $16) 51... Bf5 {[%emt 0:00:30]} 52. Nd5+ {[%emt 0:00:30]} ({But not} 52. Nxg6 $6 Bxg6 53. Rxg6 Rxa2 $16) 52... Kb7 {[%emt 0:00:30] Weighted Error Value: White=0.06 (flawless) /Black=0.16 (very precise)} 1-0

[Event "Leca Open 2022"]
[Site "Leca da Palmeira"]
[Date "2022.08.05"]
[Round "9.11"]
[White "Cabezas Ayala, Ivan"]
[Black "Sismeiro, Miguel"]
[Result "1/2-1/2"]
[ECO "B47"]
[WhiteElo "2296"]
[BlackElo "2162"]
[Annotator "TA"]
[PlyCount "81"]
[EventDate "2022.08.02"]
[EventType "swiss"]
[EventCountry "POR"]
[SourceTitle "playchess.com"]
[Source "ChessBase"]
[SourceQuality "1"]
[TimeControl "5400+30"]

{[%evp 24,81,14,3,24,10,39,36,50,0,0,0,0,-80,0,0,6,0,0,0,4,-6,22,34,32,0,0,0,0,0,0,0,7,8,4,6,14,14,14,14,14,14,14,14,25,14,38,29,29,0,29,0,10,0,0,0,0,0,0,0]} 1. e4 c5 2. Nf3 e6 3. d4 cxd4 4. Nxd4 Nc6 5. Nc3 Qc7 6. Be2 Nf6 7. Be3 a6 8. O-O Be7 9. f4 d6 10. Kh1 O-O 11. Qe1 Bd7 12. Qg3 Kh8 13. Rae1 {[#]} d5 $146 {B85: Sicilian Scheveningen: 6 Be2 a6, lines with early Be3.} ({Predecessor:} 13... Rac8 14. Bd3 e5 15. fxe5 Nxe5 {½-½ (15) Horvath,A (2488)-Aczel,G (2511) Budapest 2020}) 14. exd5 (14. e5 {feels hotter.} Ne4 15. Nxe4 dxe4 16. Nb3) 14... Nxd5 (14... exd5 {keeps more tension.} 15. Bd3 Rae8 16. a3 Bd6) 15. Nxd5 exd5 {White is slightly better.} 16. Nxc6 ({Better is} 16. c3 $14) 16... Qxc6 $11 17. Bd4 {[%csl Gd4][%cal Rg3g7] [#]} Bf6 18. Be5 (18. Bxf6 $11 {remains equal.} Qxf6 19. Qb3) 18... Bf5 ({Much weaker is} 18... Qxc2 19. Bxf6 gxf6 20. Bd3 $11) (18... Bxe5 $17 19. fxe5 Qxc2) 19. Bd3 Bxd3 20. Qxd3 Rad8 21. h3 h6 22. Qf5 Rde8 23. Bxf6 Qxf6 24. Qxd5 Rxe1 25. Rxe1 Qxb2 26. Qb3 Qxb3 27. cxb3 {[%mdl 4096] Endgame KR-KR} Kg8 28. Re7 Rb8 $1 29. Rc7 b5 30. Rc6 a5 31. Ra6 a4 $1 32. bxa4 bxa4 33. Rxa4 Rb2 34. Kh2 h5 35. h4 g6 36. Kg3 {[%cal Of4f5]} Rc2 37. Ra3 {[%cal Of4f5]} Kg7 {The position is equal.} 38. Kf3 Kf6 39. g3 Kf5 40. Ra5+ Kf6 41. Ra6+ {Weighted Error Value: White=0.15 (very precise) /Black=0.12 (very precise)} 1/2-1/2

[Event "Leca Open 2022"]
[Site "Leca da Palmeira"]
[Date "2022.08.05"]
[Round "9.12"]
[White "Pierrot, Facundo"]
[Black "Bhagat, Kush"]
[Result "1/2-1/2"]
[ECO "A48"]
[WhiteElo "2371"]
[BlackElo "1813"]
[Annotator "TA"]
[PlyCount "82"]
[EventDate "2022.08.02"]
[EventType "swiss"]
[EventCountry "POR"]
[SourceTitle "playchess.com"]
[Source "ChessBase"]
[SourceQuality "1"]
[TimeControl "5400+30"]

{[%evp 13,82,0,0,0,10,12,8,0,31,-19,8,0,0,0,0,0,0,0,22,0,0,0,83,0,17,20,18,-27,2,0,25,29,159,169,168,164,166,116,172,33,35,25,89,100,96,-173,-175,-147,-145,-186,-161,-184,-177,-123,-145,-160,-21,-21,-13,-13,0,0,0,0,0,0,0,0,0,0,0]} 1. d4 {[%emt 0:00:03]} Nf6 {[%emt 0:02:05]} 2. Nf3 {[%emt 0:00:00]} g6 {[%emt 0:00:05]} 3. Bf4 {[%emt 0:00:00]} Bg7 {[%emt 0:00:06]} 4. e3 {[%emt 0:00:07]} O-O {[%emt 0:00:10]} 5. Be2 {[%emt 0:00:37]} d6 {[%emt 0:00:06]} 6. h3 {[%emt 0:00:16]} Nbd7 {[%emt 0:00:06] 6...c5 is the recent fashion.} 7. O-O {[%emt 0:00:51]} b6 {[%emt 0:00:36]} 8. a4 {[%emt 0:09:15] A48: 1 d4 Nf6 2 Nf3 g6: Torre, London and Colle Systems.} a6 {[%emt 0:01:41]} 9. Nbd2 {[%emt 0:02:05]} Bb7 {[%emt 0:01:31]} 10. Bh2 {[%emt 0:00:06]} Re8 {[%emt 0:00:58] [#]} 11. Bc4 $146 {[%emt 0:06:06]} (11. a5 $14) ({Predecessor:} 11. c3 e5 12. dxe5 Nxe5 13. Nxe5 dxe5 14. Nc4 Ne4 15. Qxd8 Raxd8 16. Rfd1 Rxd1+ 17. Rxd1 {½-½ (63) Wang,Y (2690)-Al Modiahki,M (2542) Riadh 2017}) 11... h6 {[%emt 0:02:53]} 12. Re1 {[%emt 0:02:15]} e5 {[%emt 0:02:05]} 13. dxe5 {[%emt 0:00:23]} dxe5 {[%emt 0:00:40]} 14. e4 {[%emt 0:00:51]} Qe7 {[%emt 0:03:24]} 15. c3 {[%emt 0:00:16]} Nh5 {[%emt 0:03:55]} 16. b4 {[%emt 0:11:28]} Nf4 {[%emt 0:10:41]} 17. Qb3 {[%emt 0:04:21]} Rf8 {[%emt 0:05:19]} (17... Red8 $11) 18. Nf1 {[%emt 0:10:15]} (18. Bxf4 $16 exf4 19. e5 Bxe5 20. Bd5 Bxd5 21. Qxd5) 18... Kh7 {[%emt 0:25:37]} 19. Rad1 {[%emt 0:04:10]} Rad8 {[%emt 0:01:39]} 20. Ng3 {[%emt 0:03:09]} Qf6 {[%emt 0:03:58][%cal Of4h3]} 21. Re3 {[%emt 0:00:45]} h5 {[%emt 0:02:48]} 22. Ne2 {[%emt 0:00:09]} g5 {[%emt 0:17:21]} (22... Nxe2+ $1 $11 23. Rxe2 Qe7) 23. h4 $1 $16 {[%emt 0:05:06]} Nxe2+ {[%emt 0:03:13]} 24. Bxe2 {[%emt 0:04:04]} ({Not} 24. Rxe2 gxh4 25. Red2 Qe7 $11) 24... gxh4 {[%emt 0:01:25] [#]} 25. Red3 {[%emt 0:00:11]} ({Better is} 25. Qc4 $1 $18 {[%cal Rc4c7]}) 25... Qe7 {[%emt 0:00:20] [#]} (25... Bc6 $16) 26. Nxh4 $1 {[%emt 0:02:41][%mdl 512]} Bxe4 $14 {[%emt 0:02:05] [#]} ({Resist} 26... Qxh4 27. Rxd7 Rxd7 28. Rxd7 $16) 27. Re3 {[%emt 0:00:10]} Bg6 {[%emt 0:02:30]} (27... f5 $11 28. Rh3 Nf6) (27... Nf6 28. Bg3) 28. Nxg6 $16 {[%emt 0:00:31] White is more active.} fxg6 {[%emt 0:00:02]} 29. Bxa6 $2 {[%emt 0:00:14][%mdl 8192] [#]} (29. Qc2 $16 {stays on course.}) 29... Nc5 $1 $19 {[%emt 0:03:11][%mdl 512]} 30. bxc5 {[%emt 0:01:01]} Qf7 {[%emt 0:00:01]} 31. Rxd8 {[%emt 0:08:04] Hoping for Qxf7.} Qxb3 {[%emt 0:00:02]} 32. Rxf8 {[%emt 0:02:03]} Bxf8 {[%emt 0:00:01]} 33. cxb6 {[%emt 0:00:07]} Qxb6 {[%emt 0:00:34]} 34. Bd3 {[%emt 0:00:16]} Bd6 {[%emt 0:00:38]} ({Black should try} 34... Bc5 $17 35. Rxe5 Bxf2+ 36. Kf1 Kg7 37. Re7+ Kf8) 35. Bxe5 $11 {[%emt 0:00:32] The position is equal.} Bxe5 {[%emt 0:00:39]} 36. Rxe5 {[%emt 0:00:13][%mdl 4096] Endgame KQ-KRB} Qd6 {[%emt 0:01:26]} 37. Rxh5+ {[%emt 0:00:21]} Kg7 {[%emt 0:00:51]} 38. Rh3 {[%emt 0:00:06]} Qa3 {[%emt 0:00:48][%csl LRa4,LRc3]} 39. Rg3 {[%emt 0:07:06]} Qc1+ {[%emt 0:00:02]} 40. Kh2 {[%emt 0:02:05]} Qh6+ {[%emt 0:00:02]} 41. Kg1 {[%emt 0:00:17]} Qc1+ {White happily takes the draw.  Weighted Error Value: White=0.35/Black=0.27 (precise)} 1/2-1/2

[Event "Leca Open 2022"]
[Site "Leca da Palmeira"]
[Date "2022.08.05"]
[Round "9.13"]
[White "Rego, Pedro Filipe"]
[Black "Pomares Munoz, Ruben"]
[Result "1-0"]
[ECO "C05"]
[WhiteElo "2251"]
[BlackElo "1761"]
[Annotator "TA"]
[PlyCount "85"]
[EventDate "2022.08.02"]
[EventType "swiss"]
[EventCountry "POR"]
[SourceTitle "playchess.com"]
[Source "ChessBase"]
[SourceQuality "1"]
[TimeControl "5400+30"]

{[%evp 18,84,68,70,75,76,309,51,90,97,345,103,127,130,115,83,84,84,72,66,85,62,75,82,114,99,146,146,191,189,186,201,195,193,256,255,234,242,356,246,445,446,441,427,539,521,907,879,1251,1229,1336,910,1507,1498,29978,29979,3666,4084,29995,29996,29996,29997,29997,29998,29998,29999,29999,29999,29999]} 1. d4 {[%emt 0:00:05]} e6 {[%emt 0:00:08]} 2. e4 {[%emt 0:00:27]} d5 {[%emt 0:00:13]} 3. Nd2 {[%emt 0:00:36]} Nf6 {[%emt 0:00:42]} 4. e5 {[%emt 0:00:18]} Nfd7 {[%emt 0:00:12]} 5. Bd3 {[%emt 0:00:05]} c5 {[%emt 0:00:13]} 6. c3 {[%emt 0:00:02]} Nc6 {[%emt 0:01:02]} 7. Ne2 {[%emt 0:00:04]} Be7 {[%emt 0:01:02]} 8. O-O {[%emt 0:00:42]} Qb6 {[%emt 0:03:32]} 9. Nf3 {[%emt 0:00:11]} O-O {[%emt 0:02:03]} 10. Re1 {[%emt 0:04:19]} cxd4 {[%emt 0:03:13] C06: French Tarrasch: 3...Nf6 4 e5 Nfd7 5 Bd3 main lines.} 11. cxd4 {[%emt 0:00:02]} Bb4 $2 {[%emt 0:02:45] [#]} (11... a6 $16) 12. Bd2 $2 {[%emt 0:00:17]} (12. Bxh7+ $1 $18 {[%mdl 512]} Kxh7 (12... Kh8 13. Nc3) 13. Ng5+ Kg8 14. Qd3 $1) 12... Bxd2 {[%emt 0:01:07] White is slightly better.} 13. Qxd2 {[%emt 0:00:08][%cal Od3h7]} Qb4 $2 {[%emt 0:02:35] [#]} (13... f6 $16 {was necessary.}) 14. Qe3 $146 {[%emt 0:06:59]} (14. Bxh7+ $1 $18 {[%mdl 512] and the rest is easy.} Kxh7 15. Ng5+ Kg8 16. Qd3) ({Predecessor:} 14. Qxb4 Nxb4 15. Bb1 Nb6 16. a3 Nc6 17. Bd3 Bd7 18. Rac1 Rfc8 19. Nd2 Na5 20. b3 Rxc1 21. Rxc1 {1-0 (54) Viela,M (2000)-Mota,D (2000) St Joao da Madeira 2001}) 14... h6 {[%emt 0:03:36]} 15. a3 {[%emt 0:00:46]} Qe7 {[%emt 0:00:19]} 16. Nc3 {[%emt 0:00:36][%cal Be2c3,Bc3a4,Ba4c5][%mdl 32]} a6 {[%emt 0:01:19]} 17. Bc2 $40 {[%emt 0:00:32][%mdl 128] White has strong attack.} Rd8 {[%emt 0:04:16]} 18. Qd3 {[%emt 0:02:51] White wants to mate with Qh7+.} Nf8 {[%emt 0:00:13] Against Qh7+} 19. Na4 {[%emt 0:00:07]} b5 {[%emt 0:03:18]} 20. Nc5 {[%emt 0:00:08] White now steadily converts the win.} Na5 {[%emt 0:08:06]} 21. b3 {[%emt 0:00:15][%cal Bb2b3,Bb3b4][%mdl 32]} Nb7 {[%emt 0:01:15]} ({Black should play} 21... Qc7) 22. b4 $16 {[%emt 0:00:18] White is much more active.} Nxc5 {[%emt 0:00:11]} 23. dxc5 {[%emt 0:03:10]} (23. bxc5 Bd7 24. Rab1 Bc6 $16) 23... Bd7 {[%emt 0:02:58]} 24. Nd4 {[%emt 0:00:06]} Rdc8 {[%emt 0:00:25]} 25. f4 {[%emt 0:01:18]} Rab8 {[%emt 0:04:03]} (25... Ra7 {keeps fighting.} 26. g3 Qe8) 26. Re3 $18 {[%emt 0:01:39]} a5 {[%emt 0:02:54]} 27. Rf1 {[%emt 0:00:05]} Rd8 {[%emt 0:06:46]} (27... Rc7 {was called for.} 28. Rg3 axb4) 28. Qe2 {[%emt 0:04:34]} f5 $2 {[%emt 0:05:02]} (28... Ra8 29. Rc3 (29. Nxb5 axb4 30. axb4 Bxb5 $11) (29. c6 Be8 $16) 29... axb4 30. axb4 Ra6) 29. exf6 {[%emt 0:00:43]} ({Not} 29. c6 Be8 30. a4 (30. bxa5 b4 $16) 30... axb4 $18) 29... Qxf6 {[%emt 0:01:50]} 30. Re5 {[%emt 0:01:40]} Re8 {[%emt 0:03:12]} 31. c6 {[%emt 0:03:34]} Bc8 {[%emt 0:00:14]} 32. f5 {[%emt 0:01:27][%cal Bf4f5,Bf5e6][%mdl 32]} Qh4 {[%emt 0:05:07]} 33. Qd3 {[%emt 0:01:29]} axb4 {[%emt 0:07:27]} 34. axb4 {[%emt 0:01:00] Threatens to win with fxe6.} Ra8 {[%emt 0:01:50]} 35. fxe6 {[%emt 0:07:37][%cal Of1f8] And now Rxf8+! would win.} Ra3 {[%emt 0:03:02]} 36. Rxf8+ {[%emt 0:02:17]} Kxf8 {[%emt 0:00:04]} 37. Qf1+ {[%emt 0:00:07]} Ke7 {[%emt 0:02:20]} 38. Qf7+ {[%emt 0:03:30] White mates.} Kd6 {[%emt 0:00:02]} 39. Nxb5+ {[%emt 0:01:22]} Kxc6 {[%emt 0:00:34]} 40. Qc7+ {[%emt 0:00:31]} Kxb5 {[%emt 0:00:11]} 41. Rxd5+ {[%emt 0:00:14]} Ka6 {[%emt 0:00:37]} 42. Rd6+ {[%emt 0:00:17]} Kb5 {[%emt 0:00:11]} 43. Qc5# {Weighted Error Value: White=0.33/Black=1.06} 1-0

[Event "Leca Open 2022"]
[Site "Leca da Palmeira"]
[Date "2022.08.05"]
[Round "9.14"]
[White "Santos, Micael"]
[Black "Jansen, Bob"]
[Result "0-1"]
[ECO "C02"]
[WhiteElo "1899"]
[BlackElo "2162"]
[Annotator "TA"]
[PlyCount "72"]
[EventDate "2022.08.02"]
[EventType "swiss"]
[EventCountry "POR"]
[SourceTitle "playchess.com"]
[Source "ChessBase"]
[SourceQuality "1"]
[TimeControl "5400+30"]

{[%evp 13,72,-4,0,-118,-114,-192,-194,-193,-191,-198,-177,-191,-175,-167,-185,-188,-179,-216,-154,-212,-209,-230,-237,-249,-227,-269,-277,-264,-273,-293,-266,-279,-277,-468,-462,-522,-527,-533,-511,-519,-487,-785,-790,-791,-554,-545,-547,-588,-588,-604,-610,-649,-631,-1036,-1027,-1025,-1006,-1113,-1103,-1254,-1150]} 1. e4 {[%emt 0:00:02]} e6 {[%emt 0:06:05]} 2. d4 {[%emt 0:00:29]} d5 {[%emt 0:00:02]} 3. e5 {[%emt 0:00:09]} c5 {[%emt 0:00:04]} 4. c3 {[%emt 0:00:06]} Nc6 {[%emt 0:00:04]} 5. Nf3 {[%emt 0:00:06]} Nge7 {[%emt 0:00:28]} 6. Bd3 {[%emt 0:01:11]} cxd4 {[%emt 0:01:25]} 7. cxd4 {[%emt 0:01:25]} Nf5 {[%emt 0:00:03]} 8. Be2 {[%emt 0:13:18] C02: French: Advance Variation.} (8. Bxf5 $11 {remains equal.} exf5 9. Nc3) 8... Qb6 $17 {[%emt 0:00:45][%cal Rf5d4] Black is more active.} 9. Be3 {[%emt 0:01:58] [#]} (9. Nc3 $17) 9... Qxb2 $146 {[%emt 0:00:40]} ({Stronger than} 9... Nxe3 10. fxe3 Qxb2 11. Nbd2 $17) ({Predecessor:} 9... Nxe3 10. fxe3 Qxb2 11. Nbd2 Be7 12. Nb3 Qc3+ 13. Nbd2 Qxe3 14. Nb3 O-O 15. Rf1 Bb4+ {0-1 (31) Cep,L-Tropp,O (1874) Ruzomberok 2010}) 10. Nbd2 {[%emt 0:00:17] Black is clearly better.} Nfxd4 {[%emt 0:03:00]} 11. O-O {[%emt 0:04:52]} Nxe2+ {[%emt 0:02:30]} 12. Qxe2 {[%emt 0:00:24]} Be7 {[%emt 0:01:14]} 13. Rfb1 {[%emt 0:03:29]} Qa3 {[%emt 0:01:17]} 14. Nb3 {[%emt 0:01:53]} O-O {[%emt 0:01:54]} 15. Nbd4 {[%emt 0:07:23]} Qa5 {[%emt 0:02:25]} 16. Rc1 {[%emt 0:03:13]} (16. Qc2 $17) 16... Bd7 {[%emt 0:05:45]} 17. Nb3 {[%emt 0:05:51]} Qd8 {[%emt 0:02:30]} 18. Bc5 {[%emt 0:02:21]} Rc8 {[%emt 0:04:31]} 19. h4 {[%emt 0:03:28]} b6 {[%emt 0:03:03]} 20. Bxe7 {[%emt 0:02:07]} Qxe7 {[%emt 0:00:06]} 21. g3 {[%emt 0:02:10]} f6 {[%emt 0:01:39]} 22. Re1 {[%emt 0:02:50]} Nxe5 {[%emt 0:01:38]} 23. Nfd4 $2 {[%emt 0:03:42] [#]} (23. Nxe5 {only move.} fxe5 24. Qxe5) 23... Rfe8 {[%emt 0:03:32] Black is clearly winning.} 24. f4 {[%emt 0:01:30]} Nc4 {[%emt 0:01:54]} 25. Qf3 {[%emt 0:03:47]} Qf7 {[%emt 0:01:31]} 26. Rad1 {[%emt 0:01:11]} e5 {[%emt 0:04:03]} 27. Ne2 {[%emt 0:04:48]} (27. fxe5 $142 Nxe5 28. Qf2) 27... Bc6 {[%emt 0:04:31] Strongly threatening ...d4.} 28. fxe5 {[%emt 0:04:12]} fxe5 {[%emt 0:04:23]} 29. Qxf7+ {[%emt 0:09:34]} Kxf7 {[%emt 0:00:02]} 30. Nec1 {[%emt 0:00:37]} d4 {[%emt 0:03:04][%cal Bd5d4,Bd4d3][%mdl 32]} 31. Nd3 {[%emt 0:02:02]} e4 {[%emt 0:04:27]} 32. Nb4 {[%emt 0:00:37]} d3 {[%emt 0:00:59]} 33. Nd4 {[%emt 0:00:17]} Ba4 {[%emt 0:01:30]} 34. Nb3 {[%emt 0:06:06]} Rcd8 {[%emt 0:02:13]} 35. Rf1+ {[%emt 0:02:40]} Kg8 {[%emt 0:01:43]} 36. Rf4 {[%emt 0:01:02]} Nb2 {[%emt 0:00:46] White got outplayed after the opening.  Weighted Error Value: White=0.48/Black=0.16 (very precise)} 0-1

[Event "Leca Open 2022"]
[Site "Leca da Palmeira"]
[Date "2022.08.05"]
[Round "9.15"]
[White "Silva, Tiago Alexandre Pinh"]
[Black "Akshit Kumar J"]
[Result "0-1"]
[ECO "B20"]
[WhiteElo "1818"]
[BlackElo "2103"]
[Annotator "TA"]
[PlyCount "72"]
[EventDate "2022.08.02"]
[EventType "swiss"]
[EventCountry "POR"]
[SourceTitle "playchess.com"]
[Source "ChessBase"]
[SourceQuality "1"]
[TimeControl "5400+30"]

{[%evp 11,72,-2,7,0,8,0,0,-9,-2,-7,0,-18,-10,-24,-30,-34,9,8,29,17,21,-202,-182,-182,-98,-121,-118,-92,-90,-96,-101,-93,-83,-174,-139,-217,-185,-214,-271,-263,-270,-238,-247,-266,-268,-253,-268,-263,-263,-262,-252,-261,-255,-246,-240,-246,-240,-638,-633,-741,-747,-735,-652]} 1. e4 {[%emt 0:00:02]} c5 {[%emt 0:04:22]} 2. c4 {[%emt 0:00:09]} Nc6 {[%emt 0:00:06]} 3. Nc3 {[%emt 0:00:04]} g6 {[%emt 0:00:05]} 4. g3 {[%emt 0:00:04]} Bg7 {[%emt 0:00:05]} 5. Bg2 {[%emt 0:00:05]} d6 {[%emt 0:00:06]} 6. Nge2 {[%emt 0:00:18]} e6 $1 {[%emt 0:00:15] The main line 6...e6 scores better than 6...Nf6.} 7. a3 {[%emt 0:00:26] A36: Symmetrical English vs ...g6: 4 Bg2 Bg7.} Nge7 {[%emt 0:00:11]} 8. Rb1 {[%emt 0:00:13]} b6 {[%emt 0:01:17]} 9. b4 {[%emt 0:02:19] The position is equal.} Bb7 {[%emt 0:00:21]} 10. d3 {[%emt 0:02:11]} O-O {[%emt 0:00:20] [#]} 11. Be3 $146 {[%emt 0:01:55]} ({Predecessor:} 11. O-O Qd7 12. b5 Nd4 13. Nxd4 cxd4 14. Na2 f5 15. Nb4 Rac8 16. Qe2 fxe4 17. Bxe4 Bxe4 18. Qxe4 d5 19. cxd5 Nxd5 {½-½ (33) Miezis,N (2468)-Safarli,E (2680) Zuerich 2017}) 11... Qd7 {[%emt 0:01:19]} 12. h4 {[%emt 0:06:20]} Ne5 {[%emt 0:06:47]} 13. h5 {[%emt 0:07:52]} d5 {[%emt 0:13:16]} 14. cxd5 {[%emt 0:10:05] next h6 is good for White.} exd5 {[%emt 0:04:55] White must now prevent ...d4.} 15. bxc5 {[%emt 0:06:08]} dxe4 {[%emt 0:05:21]} 16. d4 {[%emt 0:11:11]} (16. dxe4 $11 {and White stays safe.} Nf5 17. Qxd7 Nxd7 18. Bf4) 16... Nf3+ $19 {[%emt 0:06:37]} 17. Kf1 {[%emt 0:05:45]} Nd5 {[%emt 0:03:45]} ({Black should try} 17... bxc5 $19 {And now ...Rad8 would win.} 18. h6 Bf6 19. dxc5 Qxd1+ 20. Rxd1 Rad8 21. Rxd8 Rxd8) 18. Nxd5 $17 {[%emt 0:02:34]} Qxd5 {[%emt 0:01:02]} ({Not} 18... Bxd5 19. Bxf3 exf3 20. Nc3 $15) 19. Bxf3 {[%emt 0:01:08]} exf3 {[%emt 0:00:16]} 20. Nf4 {[%emt 0:01:37]} Qf5 {[%emt 0:03:21] Hoping for ...g5. Black is more active.} 21. hxg6 {[%emt 0:03:33]} hxg6 {[%emt 0:01:28][%cal Bh7g6,Bg6g5][%mdl 32]} 22. Rb4 {[%emt 0:06:18]} (22. Kg1 $17) 22... Rfe8 {[%emt 0:13:56]} 23. cxb6 {[%emt 0:06:13]} (23. Kg1 $17 {was worth a try.}) 23... g5 {[%emt 0:09:13]} 24. Nh5 {[%emt 0:02:48]} Ba6+ {[%emt 0:02:19] This bishop pair is nice.} 25. Kg1 {[%emt 0:01:45] [#]} Rxe3 $1 {[%emt 0:00:31][%mdl 576] Remove Defender} 26. fxe3 {[%emt 0:01:02]} f2+ $40 {[%emt 0:01:26][%mdl 128] Black has strong attack.} 27. Kg2 {[%emt 0:00:40]} Bb7+ {[%emt 0:02:00][%mdl 64] Skewer} 28. d5 {[%emt 0:00:17]} Bxd5+ {[%emt 0:01:16]} 29. e4 {[%emt 0:00:04]} Bxe4+ {[%emt 0:00:38]} 30. Rxe4 {[%emt 0:00:19]} Qxe4+ {[%emt 0:00:01]} 31. Qf3 {[%emt 0:02:05]} Qxf3+ {[%emt 0:00:11]} 32. Kxf3 {[%emt 0:00:04]} Bd4 {[%emt 0:01:27]} ({And not} 32... axb6 33. Nxg7 Kxg7 34. Kxf2) 33. b7 {[%emt 0:00:52] [#]} Rb8 {[%emt 0:00:31]} 34. Rb1 {[%emt 0:00:56] [#]} (34. Kg2 Rxb7 35. Rd1) 34... Rxb7 $3 $19 {[%emt 0:00:34][%mdl 512] Black is clearly winning.} 35. Rd1 {[%emt 0:01:32] [#]} (35. Rf1 Rb3+) 35... Re7 $1 {[%emt 0:00:36] ( -> ...Re1)} 36. Rf1 {[%emt 0:02:21]} (36. Nf6+ Bxf6) 36... Re1 {[%emt 0:00:17] Weighted Error Value: White=0.44/Black=0.08 (flawless)} 0-1